Cogmind - Beta 14 @@@ ROGUE MODE // 2024.11.15 @ 22:53:06 Player: Cacho Result: Destroyed by SQ-SGL(R) with Subdweller Beam Cannon Performance ------------- Evolutions (0) 0 Regions Visited (2) 400 Robots Destroyed (31) 155 Value Destroyed (650) 650 Prototype IDs (3) 60 Alien Tech Used (0) 0 Bonus (0) 0 TOTAL SCORE: 1265 Bonus ------- None Cogmind --------- Core Integrity 0/250 Matter 238/300 Energy 100/100 System Corruption 0% Temperature Cool (9) Movement Core (150) Ox2 Location -10/Subcaves Parts ------- > --- POWER (1) -------- (None) > --- PROPULSION (2) --- (None) > --- UTILITY (2) ------ Gun Armor > --- WEAPON (2+2) ----- Mini Grenade Launcher Heavy Hammer > --- INVENTORY (5) ---- Light Nuclear Core Light Treads Sensor Array Shield Generator Peak State ------------ > --- POWER ------------ Light Nuclear Core > --- PROPULSION ------- Light Treads > --- UTILITY ---------- Gun Armor > --- WEAPON ----------- Mini Grenade Launcher Heavy Hammer > --- INVENTORY -------- Light Nuclear Core Light Treads Sensor Array Shield Generator [Rating: 17] Favorites ----------- Power Light Nuclear Core Engine Ion Engine Power Core Light Nuclear Core Propulsion Light Treads Treads Light Treads Leg Aluminum Leg Utility Shield Generator Device Shield Generator Storage Medium Storage Unit Processor Targeting Computer Protection Gun Armor Weapon Assault Rifle Energy Gun Small Laser Ballistic Gun Assault Rifle Launcher Mini Grenade Launcher Impact Weapon Heavy Hammer Build | -11 -10 -10 ------- Run | Yrd Mat Sub Slots Evolved . | . . . Power . | . . . Propulsion . | . . . Utility . | . . . Weapon . | . . . Parts Attached 21 | . 15 6 Power 2 | . 2 . Engine 1 | . 1 . Core 1 | . 1 . Reactor . | . . . Propulsion 3 | . 2 1 Treads 3 | . 2 1 Leg . | . . . Wheel . | . . . Hover . | . . . Flight . | . . . Utility 5 | . 3 2 Device 2 | . 2 . Storage 1 | . 1 . Processor 1 | . . 1 Hackware . | . . . Protection 1 | . . 1 Artifact . | . . . Weapon 11 | . 8 3 Energy Gun . | . . . Energy Cannon . | . . . Ballistic Gun 6 | . 5 1 Ballistic Cannon . | . . . Launcher 4 | . 3 1 Special Weapon . | . . . Impact Weapon 1 | . . 1 Slashing Weapon . | . . . Piercing Weapon . | . . . Special Melee Weapon . | . . . Unidentified Prototypes 1 | . . 1 Parts Lost 9 | . 1 8 Power 1 | . . 1 Propulsion 3 | . . 3 Utility 2 | . 1 1 Weapon 3 | . . 3 Highest Loss Streak 8 | . 1 8 To Critical Strikes . | . . . Average Slot Usage (%) 98 | . 98 94 Engine 2 | . 2 . Core 11 | . 11 13 Treads 22 | . 22 25 Leg 4 | . 5 . Device 12 | . 12 11 Storage 13 | . 14 12 Energy Gun 1 | . 1 . Ballistic Gun 25 | . 25 24 Peak Build Rating 17 | . 12 17 Average Rating 10 | . 10 11 On Entrance 7 | 6 6 11 Naked Turns . | . . . Heaviest Build 21 | 10 21 21 Greatest Support 40 | 20 40 40 Greatest Overweight (x) 4 | . . 4 Average Overweight (x) . | . . . Largest Inventory Capacity 10 | . 10 10 Average Capacity 9 | . 9 9 Most Carried 10 | . 10 10 Average Carried 9 | . 9 9 Final Capacity 10 | 8 10 5 Final Carried 10 | 6 10 4 Class Distribution -------------------- 100% | Mutant Dominant Class ---------------- Mutant | -10/Materials Mutant | -10/Subcaves Resources | -11 -10 -10 ----------- Run | Yrd Mat Sub Matter Collected 641 | 200 441 . Remotely . | . . . Salvage Created 926 | . 876 50 Parts 65 | . 61 4 Haulers Intercepted 2 | . 2 . Recyclers Shooed 1 | . 1 . Parts Field Recycled . | . . . Retrieved Matter . | . . . Parts Self-Destructed 3 | . . 3 Prevented . | . . . Kills | -11 -10 -10 ------- Run | Yrd Mat Sub Combat Hostiles Destroyed 22 | . 21 1 Melee 1 | . . 1 Guns 12 | . 12 . AOE 9 | . 9 . Classes Destroyed 7 | . 6 1 Worker 2 | . 2 . Hauler 2 | . 2 . Recycler 2 | . 2 . Watcher 3 | . 3 . Swarmer 9 | . 9 . Grunt 12 | . 12 . Subdweller 1 | . . 1 Best Kill Streak 5 | . 5 1 Combat Bots Only 3 | . 3 1 Max Kills in Single Turn 4 | . 4 1 Gunslinging . | . . . Exploded 3 | . 3 . Melee 1 | . . 1 Uniques/NPCs Destroyed . | . . . Combat | -11 -10 -10 -------- Run | Yrd Mat Sub Hostile Shots Fired 128 | . 61 67 Missed 37 | . 19 18 Damage Taken 1499 | . 355 1144 Core 269 | . 60 209 Absorbed by Shields 169 | . 135 34 Core Remaining (%) 100 | 100 . . Volleys Fired 65 | . 57 8 Largest 2 | . 2 2 Hottest 70 | . 70 40 Shots Fired 124 | . 110 14 Gun 118 | . 104 14 Cannon . | . . . Launcher 6 | . 6 . Special . | . . . Kinetic 102 | . 88 14 Thermal 16 | . 16 . Explosive 6 | . 6 . Electromagnetic . | . . . Robot Hit Streak 18 | . 18 15 Robot Miss Streak 4 | . 4 . Penetration Max . | . . . Secondary Targets . | . . . Shots Hit Robots 86 | . 68 18 Core Hits 50 | . 47 3 Critical Kills 1 | . 1 . Critical Parts Destroyed . | . . . Critical Strikes 1 | . 1 . Destroy 1 | . 1 . Melee Attacks 6 | . . 6 Impact 6 | . . 6 Slashing . | . . . Piercing . | . . . Sneak Attacks . | . . . Combat Hostiles . | . . . Follow-up Attacks . | . . . Damage Inflicted 1634 | . 1293 341 Guns 915 | . 749 166 Cannons . | . . . Explosions 543 | . 543 . Melee 175 | . . 175 Ramming 1 | . 1 . Kinetic 780 | . 614 166 Thermal 135 | . 135 . Explosive 543 | . 543 . Electromagnetic . | . . . Impact 175 | . . 175 Slashing . | . . . Piercing . | . . . Highest Corruption . | . . . Average Corruption . | . . . Corruption Purged . | . . . Corruption Blocked . | . . . Overload Shots . | . . . Overflow Damage 41 | . 41 . Projectiles . | . . . Explosions 41 | . 41 . Melee . | . . . Knockbacks 2 | . . 2 Impact 2 | . . 2 Kinetic . | . . . Secondary . | . . . Self-Inflicted Damage 46 | . 46 . Shots 1 | . 1 . Rammed . | . . . Targets Rammed 1 | . 1 . Kicked . | . . . Crushed 1 | . 1 . Highest Temperature 48 | . 48 . Average Temperature 20 | . 20 . Received Heat Transfer 428 | . 141 287 Siege Activations . | . . . Robots Corrupted . | . . . Combat Hostiles . | . . . Parts Fried . | . . . Impact Corruptions . | . . . Robots Melted . | . . . Combat Hostiles . | . . . Parts Melted . | . . . Heat Transferred 300 | . 300 . Parts Sabotaged . | . . . Parts Stolen . | . . . Parts Stripped . | . . . Power Chain Reactions . | . . . Alert | -11 -10 -10 ------- Run | Yrd Mat Sub Peak Influence 294 | . 294 . Initial . | . . . Average 120 | . 120 . Maximum Alert Level 1 | . 1 . Low Security (%) 92 | . 92 . Level 1 7 | . 7 . Level 2 . | . . . Level 3 . | . . . Level 4 . | . . . Level 5 . | . . . High Security . | . . . Max Security . | . . . Squads Dispatched 5 | . 5 . Investigation 3 | . 3 . Extermination . | . . . Reinforcement 2 | . 2 . Assault . | . . . Garrison . | . . . Intercept . | . . . Searches Triggered . | . . . Construction Impeded . | . . . Haulers Reinforced . | . . . Active Scanning Responses . | . . . Cargo Convoy Interrupts . | . . . Stealth | -11 -10 -10 --------- Run | Yrd Mat Sub Distress Signals . | . . . Communications Jammed . | . . . Distress Signals . | . . . Times Spotted 30 | . 27 3 Peak Tracking Total 4 | . 4 3 Tactical Retreats . | . . . Traps | -11 -10 -10 ------- Run | Yrd Mat Sub Traps Triggered 1 | . 1 . Indirectly . | . . . Trap Hack Attempts . | . . . Triggered . | . . . Disarmed 3 | . 3 . Reprogrammed 6 | . 6 . Reused 1 | . 1 . Traps Extracted . | . . . Installed . | . . . Triggered 1 | . 1 . Machines | -11 -10 -10 ---------- Run | Yrd Mat Sub Machines Disabled 2 | . 2 . Max in Single Turn 1 | . 1 . Machines Repaired . | . . . Machines Dismantled . | . . . Machines Sabotaged . | . . . Overloaded Fab Kills . | . . . Hacking | -11 -10 -10 --------- Run | Yrd Mat Sub Machines Accessed 4 | . 4 . Terminals 3 | . 3 . Fabricators . | . . . Repair Stations . | . . . Recycling Units 1 | . 1 . Scanalyzers . | . . . Garrison Access . | . . . Total Hacks 10 | . 10 . Successful 7 | . 7 . Failed 3 | . 3 . Catastrophic . | . . . Database Lockouts . | . . . Manual . | . . . Terminals 8 | . 8 . Fabricators . | . . . Repair Stations . | . . . Recycling Units 2 | . 2 . Scanalyzers . | . . . Garrison Access . | . . . Terminal Hacks 6 | . 6 . Prototype ID Bank 1 | . 1 . Unreport Threat 2 | . 2 . Disarm Traps 1 | . 1 . Reprogram Traps 1 | . 1 . Zone Layout 1 | . 1 . Fabricator Hacks . | . . . Repair Station Hacks . | . . . Recycling Unit Hacks 1 | . 1 . Retrieve Components 1 | . 1 . Scanalyzer . | . . . Garrison Access Hacks . | . . . Unauthorized Hacks . | . . . Terminals . | . . . Fabricators . | . . . Repair Stations . | . . . Recycling Units . | . . . Scanalyzers . | . . . Garrison Access . | . . . Data Cores Recovered . | . . . Used . | . . . Hacking Detections 3 | . 3 . Full Trace Events 1 | . 1 . Feedback Events . | . . . Feedback Blocked . | . . . Robot Schematics Acquired . | . . . Robots Built . | . . . Authchips . | . . . Time . | . . . Total Robot Build Rating . | . . . Part Schematics Acquired . | . . . Parts Built . | . . . Authchips . | . . . Time . | . . . Total Part Build Rating . | . . . Parts Repaired . | . . . Time . | . . . Parts Recycled . | . . . Recycled Matter . | . . . Retrieved Matter . | . . . Retrieved Components 10 | . 10 . Parts Scanalyzed . | . . . Part Schematics Acquired . | . . . Parts Damaged . | . . . Bothacking | -11 -10 -10 ------------ Run | Yrd Mat Sub Used RIF Installer . | . . . Robots Hacked . | . . . Non-combat . | . . . Combat . | . . . Robot Hacks Applied . | . . . Relay Couplers Released . | . . . Fabnet Peak Effective % . | . . . Robots Rewired . | . . . Allies Hacked . | . . . Hacks Repelled . | . . . Allies | -11 -10 -10 -------- Run | Yrd Mat Sub Total Allies . | . . . Largest Group . | . . . Highest-Rated Group . | . . . Highest-Rated Ally . | . . . Total Orders . | . . . Ally Attacks . | . . . Total Damage . | . . . Kills . | . . . Allies Corrupted . | . . . Allies Melted . | . . . Intel | -11 -10 -10 ------- Run | Yrd Mat Sub Robot Analysis Total . | . . . Derelict Logs Recovered . | . . . Drone Launches . | . . . Drone Recoveries . | . . . Exploration | -11 -10 -10 ------------- Run | Yrd Mat Sub Turns Passed 2270 | . 1882 388 Spaces Moved 1145 | 1 934 210 Core 4 | . . 4 Treads 925 | . 719 206 Legs 216 | 1 215 . Wheels . | . . . Hover . | . . . Flight . | . . . Fastest Speed 120 | 120 120 150 Average Speed 152 | 120 150 161 Slowest Speed 250 | 120 160 250 Overloaded Moves . | . . . Propulsion Burnouts . | . . . Robots Hopped . | . . . Cave-ins Triggered . | . . . Exploration Rate (%) 38 | 2 99 14 Regions Visited 2 Branch Regions 1 Pre-discovered Areas . | . . . Known Exits Taken . | . . . Unknown Exits Taken 2 | 1 1 . Scrap Searched . | . . . Spaces Dug . | . . . Terrain Destroyed 52 | . 52 . Melee . | . . . Projectile . | . . . AOE 52 | . 52 . Terrain Rammed . | . . . Walls Destroyed . | . . . Machines Disabled . | . . . Actions | -11 -10 -10 --------- Run | Yrd Mat Sub Total 1536 | . 1300 236 Wait 271 | . 267 4 Move 1143 | . 933 210 Hop . | . . . Pick Up 13 | . 13 . Fast Attach 5 | . 4 1 Attach 5 | . . 5 Detach 1 | . . 1 Swap 11 | . 11 . Drop 15 | . 14 1 Fire 65 | . 57 8 Melee 6 | . . 6 Ram . | . . . Kick . | . . . Crush 1 | . 1 . Escape Stasis . | . . . Rewire . | . . . Trap . | . . . Miscellaneous . | . . . Route ------- -11/Scrapyard -10/Materials (discovered 6 exits: [*Mat x3] / [*Min x2] / [*Sub]) -10/Subcaves History --------- Turn | Location | Event 1 | -11/Scrapyard | Discovered new exit (range 0) 1 | -11/Scrapyard | Entered Materials 173 | -10/Materials | Discovered new exit (range 13) 236 | -10/Materials | Discovered new exit (range 8) 307 | -10/Materials | Build established: Mutant 338 | -10/Materials | Discovered new exit (range 16) 563 | -10/Materials | Discovered new exit (range 7) 1127 | -10/Materials | Discovered new exit (range 16) 1865 | -10/Materials | Discovered new exit (range 6) 1883 | -10/Materials | Entered Subcaves 2209 | -10/Subcaves | A Subdweller sparked back to life 2209 | -10/Subcaves | A Subdweller sparked back to life 2209 | -10/Subcaves | A Subdweller sparked back to life 2224 | -10/Subcaves | Core integrity fell below 50% 2242 | -10/Subcaves | Found Prototype Protection 2242 | -10/Subcaves | Identified Gun Armor 2244 | -10/Subcaves | Attached Gun Armor, gained temporary slots: Weapon x2 2263 | -10/Subcaves | Core integrity fell below 20% 2271 | -10/Subcaves | Destroyed by SQ-SGL(R) with Subdweller Beam Cannon Last Messages --------------- 02241_ Discarded Targeting Computer. 02242_ Dropped Med. Storage Unit. 02242_ Acquired Prototype Protection. 02242_ Identified Gun Armor. 02243_ Subatomizers dissect the Sub. Power Source. 02244_ Core temporarily expanded with Weapon slot. 02250_ HI-265(R) knocked back. 02253_ Lgt. Treads destroyed. 02256_ Subatomizers dissect the Sub. Power Source. 02258_ HI-265(R) affixes Scrap Shield Fragment to Scrap Shield. 02260_ SQ-SGL(R) knocked back. 02264_ Lgt. Nuclear Core destroyed. 02267_ SQ-SGL(R) affixes Scrap Shield Fragment to Scrap Shield. 02268_ Subatomizers dissect the Sub. Power Source. Map ----- +----------------------------------------------------+ | | | | | | | | | | | | | ?????????????????????????????????????????????????? | | ?????????????????????????????????????????????????? | | ?????????????????????????????????????????????????? | | ?????????????????????????????????????????????????? | | ?????????????????????????????????????????????????? | | ?????????????????????????????????????????????????? | | ?????????????????????????????????????????????????? | | ?????????????????????????????????????????????????? | | ?????????????????????????????????????????????????? | | ?????????????????????????????????????????????????? | | ?????????????????????????????????????????????????? | | ??????????????????##?????????????????????????????? | | ??????????????????# #????????????????????????????? | | ???????????????????# #???????????????????????????? | | ?????????????####??##;#?#######